[Event "Early-Titled-Tuesday-Blitz-March-05-2024"]
[Site "Chess.com"]
[Date "2024.03.05"]
[Round "10"]
[White "Actuary44"]
[Black "sorch29"]
[Result "0-1"]
[WhiteElo "2533"]
[BlackElo "2463"]
[TimeControl "180+1"]
[EndTime "9:58:31 PST"]
[Termination "sorch29 won on time"]

1. e4 {[%clk 0:03:00.9]} 1... c5 {[%clk 0:02:55.4]} 2. d4 {[%clk 0:03:01]} 2...
cxd4 {[%clk 0:02:55.2]} 3. c3 {[%clk 0:03:01.7]} 3... Nf6 {[%clk 0:02:55.6]} 4.
Bd3 {[%clk 0:03:01.6]} 4... dxc3 {[%clk 0:02:34.7]} 5. Nxc3 {[%clk 0:03:02.5]}
5... d6 {[%clk 0:02:34.3]} 6. f4 {[%clk 0:03:02.6]} 6... e6 {[%clk 0:02:33.4]}
7. Nf3 {[%clk 0:03:03.1]} 7... Be7 {[%clk 0:02:34]} 8. O-O {[%clk 0:03:03.6]}
8... Nc6 {[%clk 0:02:34.1]} 9. Kh1 {[%clk 0:03:04.1]} 9... O-O {[%clk
0:02:32.5]} 10. Qe1 {[%clk 0:03:04.6]} 10... b6 {[%clk 0:01:59.6]} 11. Be3
{[%clk 0:03:03.8]} 11... Nb4 {[%clk 0:01:58.5]} 12. Bb1 {[%clk 0:03:02.4]} 12...
Ba6 {[%clk 0:01:58.4]} 13. Rg1 {[%clk 0:03:00.9]} 13... Nd3 {[%clk 0:01:53.8]}
14. Qd2 {[%clk 0:02:55.3]} 14... Nc5 {[%clk 0:01:46.5]} 15. b4 {[%clk
0:02:50.6]} 15... Ncd7 {[%clk 0:01:39.6]} 16. e5 {[%clk 0:02:36.1]} 16... dxe5
{[%clk 0:01:26.2]} 17. fxe5 {[%clk 0:02:37]} 17... Ng4 {[%clk 0:01:07.3]} 18.
Rd1 {[%clk 0:01:49.9]} 18... Ndxe5 {[%clk 0:00:33.2]} 19. Qc2 {[%clk 0:01:09.7]}
19... Bd3 {[%clk 0:00:32.9]} 20. Rxd3 {[%clk 0:01:04.7]} 20... Nxd3 {[%clk
0:00:20.1]} 21. Bg1 {[%clk 0:00:59.5]} 21... Bxb4 {[%clk 0:00:15.3]} 22. Nd1
{[%clk 0:00:50.7]} 22... Rc8 {[%clk 0:00:06.5]} 23. Qxd3 {[%clk 0:00:50.2]}
23... Qxd3 {[%clk 0:00:07.1]} 24. Bxd3 {[%clk 0:00:51.1]} 24... Rfd8 {[%clk
0:00:07.3]} 25. Ba6 {[%clk 0:00:43.9]} 25... Rc2 {[%clk 0:00:06.6]} 26. h3
{[%clk 0:00:44]} 26... Nf6 {[%clk 0:00:06]} 27. Ne3 {[%clk 0:00:38.8]} 27... Rc7
{[%clk 0:00:04.6]} 28. Nc4 {[%clk 0:00:29]} 28... Ne4 {[%clk 0:00:04.3]} 29. Rb1
{[%clk 0:00:24.4]} 29... Bc5 {[%clk 0:00:03.4]} 30. Bh2 {[%clk 0:00:24.7]} 30...
Nf2+ {[%clk 0:00:03.4]} 31. Kg1 {[%clk 0:00:24.5]} 31... Ng4+ {[%clk 0:00:03.5]}
32. Kf1 {[%clk 0:00:21.3]} 32... Nxh2+ {[%clk 0:00:04.1]} 33. Nxh2 {[%clk
0:00:22.2]} 33... g6 {[%clk 0:00:04.5]} 34. Ng4 {[%clk 0:00:21.8]} 34... Kg7
{[%clk 0:00:05.1]} 35. Nge5 {[%clk 0:00:21.3]} 35... f6 {[%clk 0:00:04.7]} 36.
Nf3 {[%clk 0:00:18.6]} 36... e5 {[%clk 0:00:05]} 37. Ke2 {[%clk 0:00:14.9]}
37... Re7 {[%clk 0:00:05.4]} 38. Ne3 {[%clk 0:00:14.2]} 38... f5 {[%clk
0:00:04.8]} 39. Bc4 {[%clk 0:00:12.6]} 39... e4 {[%clk 0:00:04.9]} 40. Nd2
{[%clk 0:00:11.4]} 40... Red7 {[%clk 0:00:04.1]} 41. Nb3 {[%clk 0:00:11.1]}
41... f4 {[%clk 0:00:04.3]} 42. Ng4 {[%clk 0:00:08.4]} 42... h5 {[%clk
0:00:02.8]} 43. Ne5 {[%clk 0:00:07.9]} 43... Rd6 {[%clk 0:00:03]} 44. Nxc5
{[%clk 0:00:07.4]} 44... bxc5 {[%clk 0:00:02.9]} 45. Rb7+ {[%clk 0:00:07.6]}
45... Kf6 {[%clk 0:00:02.6]} 46. Nf7 {[%clk 0:00:01.7]} 46... Rd2+ {[%clk
0:00:02.7]} 47. Ke1 {[%clk 0:00:01.3]} 47... R8d4 {[%clk 0:00:03.6]} 0-1

[Event "Early-Titled-Tuesday-Blitz-March-05-2024"]
[Site "Chess.com"]
[Date "2024.03.05"]
[Round "10"]
[White "diamonds13"]
[Black "noblerone"]
[Result "1/2-1/2"]
[WhiteElo "2358"]
[BlackElo "2500"]
[TimeControl "180+1"]
[EndTime "9:58:33 PST"]
[Termination "Game drawn by repetition"]

1. d4 {[%clk 0:02:55.9]} 1... d5 {[%clk 0:02:58.8]} 2. c4 {[%clk 0:02:55.7]}
2... c6 {[%clk 0:02:57.4]} 3. cxd5 {[%clk 0:02:55.3]} 3... cxd5 {[%clk
0:02:57.4]} 4. Bf4 {[%clk 0:02:55.9]} 4... Nf6 {[%clk 0:02:57.4]} 5. Nc3 {[%clk
0:02:54.1]} 5... Nc6 {[%clk 0:02:56.7]} 6. e3 {[%clk 0:02:54.5]} 6... a6 {[%clk
0:02:57.2]} 7. Bd3 {[%clk 0:02:52.7]} 7... Bg4 {[%clk 0:02:41.7]} 8. f3 {[%clk
0:02:52.6]} 8... Bh5 {[%clk 0:02:40.5]} 9. Nh3 {[%clk 0:02:51.3]} 9... Bg6
{[%clk 0:02:40.4]} 10. Nf2 {[%clk 0:02:51.2]} 10... Bxd3 {[%clk 0:02:38.2]} 11.
Nxd3 {[%clk 0:02:51.3]} 11... e6 {[%clk 0:02:39.1]} 12. O-O {[%clk 0:02:48.3]}
12... Nh5 {[%clk 0:02:35.9]} 13. Be5 {[%clk 0:02:42.7]} 13... Nxe5 {[%clk
0:02:33.1]} 14. dxe5 {[%clk 0:02:38.7]} 14... g6 {[%clk 0:02:31.7]} 15. f4
{[%clk 0:02:36.8]} 15... Qb6 {[%clk 0:02:24.3]} 16. Qf3 {[%clk 0:02:22.5]} 16...
Be7 {[%clk 0:02:14.2]} 17. a4 {[%clk 0:02:15.5]} 17... Ng7 {[%clk 0:01:59.1]}
18. a5 {[%clk 0:02:13.1]} 18... Qa7 {[%clk 0:01:49.6]} 19. Na4 {[%clk
0:02:01.2]} 19... Bd8 {[%clk 0:01:41.9]} 20. b4 {[%clk 0:01:56.1]} 20... Nf5
{[%clk 0:01:38]} 21. Ndc5 {[%clk 0:01:54.6]} 21... h5 {[%clk 0:01:35.5]} 22. Rf2
{[%clk 0:01:46.3]} 22... b5 {[%clk 0:01:25.3]} 23. Nb2 {[%clk 0:01:42.8]} 23...
Be7 {[%clk 0:01:18.3]} 24. Nbd3 {[%clk 0:01:42.4]} 24... Rc8 {[%clk 0:01:15.1]}
25. Rc1 {[%clk 0:01:39.8]} 25... O-O {[%clk 0:01:00.9]} 26. g3 {[%clk
0:01:37.1]} 26... Bxc5 {[%clk 0:00:55.3]} 27. Nxc5 {[%clk 0:01:36.2]} 27... Rfd8
{[%clk 0:00:53.3]} 28. h3 {[%clk 0:01:28]} 28... d4 {[%clk 0:00:48]} 29. e4
{[%clk 0:01:28]} 29... Ne3 {[%clk 0:00:48.1]} 30. g4 {[%clk 0:01:26.6]} 30...
hxg4 {[%clk 0:00:29]} 31. hxg4 {[%clk 0:01:26.4]} 31... Qe7 {[%clk 0:00:21.3]}
32. Rh2 {[%clk 0:01:23.6]} 32... Kg7 {[%clk 0:00:21]} 33. Kf2 {[%clk 0:01:08.8]}
33... Rh8 {[%clk 0:00:20.4]} 34. Rch1 {[%clk 0:01:08.7]} 34... Rxh2+ {[%clk
0:00:19.8]} 35. Rxh2 {[%clk 0:01:08.9]} 35... Rh8 {[%clk 0:00:19.9]} 36. Rxh8
{[%clk 0:01:08.8]} 36... Kxh8 {[%clk 0:00:20.8]} 37. g5 {[%clk 0:01:07.1]} 37...
Kg7 {[%clk 0:00:17.3]} 38. Ke2 {[%clk 0:01:01.8]} 38... Qd8 {[%clk 0:00:13.8]}
39. Kd3 {[%clk 0:00:58.4]} 39... Nc4 {[%clk 0:00:13.9]} 40. Qg2 {[%clk 0:00:55]}
40... Nxa5 {[%clk 0:00:11.4]} 41. bxa5 {[%clk 0:00:44.3]} 41... Qxa5 {[%clk
0:00:11.6]} 42. Qc2 {[%clk 0:00:43.3]} 42... Qa3+ {[%clk 0:00:10.1]} 43. Kxd4
{[%clk 0:00:43.2]} 43... b4 {[%clk 0:00:10.2]} 44. Qb3 {[%clk 0:00:41.8]} 44...
Qa1+ {[%clk 0:00:09.2]} 45. Kc4 {[%clk 0:00:40.5]} 45... a5 {[%clk 0:00:09.6]}
46. Kb5 {[%clk 0:00:38.1]} 46... Qc1 {[%clk 0:00:07.4]} 47. Na4 {[%clk
0:00:34.2]} 47... Qxf4 {[%clk 0:00:07.2]} 48. Kxa5 {[%clk 0:00:31.9]} 48...
Qxe5+ {[%clk 0:00:07.1]} 49. Kxb4 {[%clk 0:00:31.9]} 49... Qxe4+ {[%clk
0:00:07.4]} 50. Qc4 {[%clk 0:00:32]} 50... Qxc4+ {[%clk 0:00:07.6]} 51. Kxc4
{[%clk 0:00:31.4]} 51... f6 {[%clk 0:00:08.5]} 52. Nc5 {[%clk 0:00:31.3]} 52...
fxg5 {[%clk 0:00:08.9]} 53. Nxe6+ {[%clk 0:00:31.5]} 53... Kf6 {[%clk
0:00:09.8]} 54. Nd4 {[%clk 0:00:31.1]} 54... Ke5 {[%clk 0:00:10.1]} 55. Kd3
{[%clk 0:00:30.3]} 55... Kf4 {[%clk 0:00:09.9]} 56. Ne6+ {[%clk 0:00:30.3]}
56... Kf5 {[%clk 0:00:10.1]} 57. Ng7+ {[%clk 0:00:29.3]} 57... Kf4 {[%clk
0:00:10]} 58. Ke2 {[%clk 0:00:28.6]} 58... g4 {[%clk 0:00:09.9]} 59. Kf2 {[%clk
0:00:28.9]} 59... g3+ {[%clk 0:00:09.9]} 60. Kg2 {[%clk 0:00:29.1]} 60... Kg4
{[%clk 0:00:10.8]} 61. Ne6 {[%clk 0:00:28.9]} 61... g5 {[%clk 0:00:11.1]} 62.
Nd4 {[%clk 0:00:29]} 62... Kf4 {[%clk 0:00:11.2]} 63. Ne2+ {[%clk 0:00:29.4]}
63... Kg4 {[%clk 0:00:12.1]} 64. Nxg3 {[%clk 0:00:29.6]} 64... Kf4 {[%clk
0:00:13]} 65. Kf2 {[%clk 0:00:29.7]} 65... g4 {[%clk 0:00:13.9]} 66. Kg2 {[%clk
0:00:29.9]} 66... Kg5 {[%clk 0:00:14.8]} 67. Kf2 {[%clk 0:00:30.3]} 67... Kf4
{[%clk 0:00:15.7]} 68. Kg2 {[%clk 0:00:29.8]} 68... Kg5 {[%clk 0:00:16.6]} 69.
Kh2 {[%clk 0:00:29.4]} 69... Kf4 {[%clk 0:00:17.5]} 70. Kg2 {[%clk 0:00:29.8]}
1/2-1/2

[Event "Early-Titled-Tuesday-Blitz-March-05-2024"]
[Site "Chess.com"]
[Date "2024.03.05"]
[Round "10"]
[White "Jospem"]
[Black "Firouzja2003"]
[Result "1/2-1/2"]
[WhiteElo "3098"]
[BlackElo "3225"]
[TimeControl "180+1"]
[EndTime "9:58:34 PST"]
[Termination "Game drawn by repetition"]

1. e4 {[%clk 0:02:58.1]} 1... c6 {[%clk 0:02:58.3]} 2. d4 {[%clk 0:02:58]} 2...
d5 {[%clk 0:02:58.6]} 3. e5 {[%clk 0:02:58.8]} 3... Bf5 {[%clk 0:02:58.5]} 4. h4
{[%clk 0:02:59.5]} 4... h5 {[%clk 0:02:57.8]} 5. Bd3 {[%clk 0:02:59.9]} 5...
Bxd3 {[%clk 0:02:58.1]} 6. Qxd3 {[%clk 0:03:00.8]} 6... Qa5+ {[%clk 0:02:56.3]}
7. b4 {[%clk 0:03:01.1]} 7... Qxb4+ {[%clk 0:02:48.5]} 8. Nd2 {[%clk 0:03:00.7]}
8... e6 {[%clk 0:02:48.1]} 9. Rb1 {[%clk 0:03:01.1]} 9... Qe7 {[%clk 0:02:48.1]}
10. Ne2 {[%clk 0:03:01.9]} 10... Nh6 {[%clk 0:02:42.8]} 11. Nf3 {[%clk
0:03:02.1]} 11... Qc7 {[%clk 0:02:34]} 12. O-O {[%clk 0:02:59.4]} 12... Nd7
{[%clk 0:02:31.1]} 13. Bg5 {[%clk 0:02:53.2]} 13... Nb6 {[%clk 0:02:26.8]} 14.
Nd2 {[%clk 0:02:51.2]} 14... Be7 {[%clk 0:02:24.8]} 15. Nf4 {[%clk 0:02:45.2]}
15... Nf5 {[%clk 0:02:23.4]} 16. Bxe7 {[%clk 0:02:42.3]} 16... Qxe7 {[%clk
0:02:22]} 17. g3 {[%clk 0:02:41.3]} 17... g6 {[%clk 0:02:17.8]} 18. Nh3 {[%clk
0:02:36.2]} 18... Kf8 {[%clk 0:02:09.3]} 19. Nf3 {[%clk 0:02:28.6]} 19... Kg7
{[%clk 0:02:08.9]} 20. Nf4 {[%clk 0:02:28.4]} 20... c5 {[%clk 0:02:06.5]} 21. c3
{[%clk 0:02:26.8]} 21... Rac8 {[%clk 0:02:06.3]} 22. Ng2 {[%clk 0:02:10.6]}
22... cxd4 {[%clk 0:02:02.5]} 23. cxd4 {[%clk 0:02:11.5]} 23... Rc6 {[%clk
0:01:58.3]} 24. Ne3 {[%clk 0:02:11.7]} 24... Nh6 {[%clk 0:01:58.5]} 25. Rfc1
{[%clk 0:02:08.9]} 25... Rhc8 {[%clk 0:01:58]} 26. Rxc6 {[%clk 0:02:09.5]} 26...
Rxc6 {[%clk 0:01:58.3]} 27. Qb3 {[%clk 0:02:00.9]} 27... Qc7 {[%clk 0:01:48.9]}
28. Kg2 {[%clk 0:02:01.1]} 28... Rc3 {[%clk 0:01:38]} 29. Qb2 {[%clk 0:01:43.9]}
29... Ng4 {[%clk 0:01:24.9]} 30. Nxg4 {[%clk 0:01:30.7]} 30... hxg4 {[%clk
0:01:25.8]} 31. Nh2 {[%clk 0:01:31.4]} 31... Qc4 {[%clk 0:00:58.6]} 32. Qd2
{[%clk 0:00:42.6]} 32... Qd3 {[%clk 0:00:56.5]} 33. Qxd3 {[%clk 0:00:39.3]}
33... Rxd3 {[%clk 0:00:57.4]} 34. Rb4 {[%clk 0:00:39.6]} 34... Nc4 {[%clk
0:00:50.5]} 35. Rxb7 {[%clk 0:00:29.5]} 35... Rxd4 {[%clk 0:00:50.7]} 36. Rxa7
{[%clk 0:00:30]} 36... Nxe5 {[%clk 0:00:51.1]} 37. a4 {[%clk 0:00:30.5]} 37...
Rd2 {[%clk 0:00:46.7]} 38. a5 {[%clk 0:00:30.8]} 38... Ra2 {[%clk 0:00:45.3]}
39. a6 {[%clk 0:00:29.8]} 39... d4 {[%clk 0:00:45]} 40. Ra8 {[%clk 0:00:29.1]}
40... d3 {[%clk 0:00:39.9]} 41. a7 {[%clk 0:00:29.3]} 41... Nc6 {[%clk
0:00:29.9]} 42. Nxg4 {[%clk 0:00:24.9]} 42... d2 {[%clk 0:00:15.2]} 43. Ne3
{[%clk 0:00:25.1]} 43... Nxa7 {[%clk 0:00:15.2]} 44. Kf3 {[%clk 0:00:21.4]}
44... e5 {[%clk 0:00:12.2]} 45. Ke2 {[%clk 0:00:21.3]} 45... Ra5 {[%clk
0:00:02.7]} 46. Nc4 {[%clk 0:00:18.2]} 46... Rd5 {[%clk 0:00:02.8]} 47. Nxd2
{[%clk 0:00:18.7]} 47... Nc6 {[%clk 0:00:03.2]} 48. Nc4 {[%clk 0:00:15.4]} 48...
Nd4+ {[%clk 0:00:03.1]} 49. Kf1 {[%clk 0:00:16.1]} 49... Rc5 {[%clk 0:00:03.2]}
50. Ne3 {[%clk 0:00:15.8]} 50... e4 {[%clk 0:00:03]} 51. Ra7 {[%clk 0:00:15]}
51... Nf3 {[%clk 0:00:03]} 52. Ra1 {[%clk 0:00:12]} 52... f5 {[%clk 0:00:03]}
53. Kg2 {[%clk 0:00:12.5]} 53... Kh6 {[%clk 0:00:03.5]} 54. Ra6 {[%clk
0:00:09.8]} 54... Kg7 {[%clk 0:00:02.5]} 55. Ra7+ {[%clk 0:00:09.7]} 55... Kh6
{[%clk 0:00:03.1]} 56. Ra6 {[%clk 0:00:10.3]} 56... Kg7 {[%clk 0:00:03.6]} 57.
Ra7+ {[%clk 0:00:11]} 57... Kh6 {[%clk 0:00:04.3]} 58. Ra6 {[%clk 0:00:11.7]}
1/2-1/2

[Event "Early-Titled-Tuesday-Blitz-March-05-2024"]
[Site "Chess.com"]
[Date "2024.03.05"]
[Round "10"]
[White "NikoTheodorou"]
[Black "Rikikits"]
[Result "1-0"]
[WhiteElo "3069"]
[BlackElo "2865"]
[TimeControl "180+1"]
[EndTime "9:58:34 PST"]
[Termination "NikoTheodorou won by resignation"]

1. d4 {[%clk 0:03:00.9]} 1... d5 {[%clk 0:02:59.6]} 2. c4 {[%clk 0:03:01.4]}
2... c6 {[%clk 0:02:59.7]} 3. Nf3 {[%clk 0:03:01.5]} 3... Nf6 {[%clk 0:02:59.7]}
4. Nc3 {[%clk 0:03:00.6]} 4... dxc4 {[%clk 0:02:59.5]} 5. e4 {[%clk 0:03:01]}
5... b5 {[%clk 0:02:59]} 6. Be2 {[%clk 0:03:01.7]} 6... e6 {[%clk 0:02:58.9]} 7.
O-O {[%clk 0:03:01.3]} 7... a5 {[%clk 0:02:59]} 8. Qc2 {[%clk 0:02:38.4]} 8...
Be7 {[%clk 0:02:52.7]} 9. b3 {[%clk 0:02:21.7]} 9... cxb3 {[%clk 0:02:43.5]} 10.
axb3 {[%clk 0:02:20]} 10... Na6 {[%clk 0:02:35.4]} 11. e5 {[%clk 0:02:11.8]}
11... Nb4 {[%clk 0:02:33.5]} 12. Qb1 {[%clk 0:02:00.9]} 12... Nfd5 {[%clk
0:02:31.2]} 13. Ne4 {[%clk 0:02:01.5]} 13... h6 {[%clk 0:02:27.8]} 14. h4 {[%clk
0:01:50.9]} 14... O-O {[%clk 0:02:25.8]} 15. g3 {[%clk 0:01:39.9]} 15... Bb7
{[%clk 0:02:17.6]} 16. Bd2 {[%clk 0:01:40.3]} 16... Qb6 {[%clk 0:02:14.8]} 17.
Qc1 {[%clk 0:01:38.5]} 17... Kh7 {[%clk 0:01:54.8]} 18. Qb1 {[%clk 0:01:38.8]}
18... Kg8 {[%clk 0:01:54.1]} 19. Qc1 {[%clk 0:01:39.3]} 19... Kh7 {[%clk
0:01:54.1]} 20. Nc5 {[%clk 0:01:35]} 20... Rad8 {[%clk 0:01:30.5]} 21. Re1
{[%clk 0:01:31.9]} 21... Bxc5 {[%clk 0:01:07.7]} 22. dxc5 {[%clk 0:01:32.8]}
22... Qc7 {[%clk 0:01:07.3]} 23. Qb1+ {[%clk 0:01:23.4]} 23... Kg8 {[%clk
0:01:06.5]} 24. Qe4 {[%clk 0:01:24.1]} 24... Ne7 {[%clk 0:00:52.2]} 25. Bxb4
{[%clk 0:01:04.8]} 25... axb4 {[%clk 0:00:53.1]} 26. Bd3 {[%clk 0:01:05.4]}
26... g6 {[%clk 0:00:39.7]} 27. h5 {[%clk 0:01:06]} 27... Kg7 {[%clk 0:00:24.2]}
28. Bc2 {[%clk 0:00:48.8]} 28... Rd5 {[%clk 0:00:23]} 29. Qxb4 {[%clk
0:00:45.8]} 29... gxh5 {[%clk 0:00:19.1]} 30. Qf4 {[%clk 0:00:43.1]} 30... Ng6
{[%clk 0:00:15]} 31. Qf6+ {[%clk 0:00:42.4]} 31... Kg8 {[%clk 0:00:15.5]} 32.
Ra7 {[%clk 0:00:30]} 32... Rd7 {[%clk 0:00:15.6]} 33. Nh4 {[%clk 0:00:23.1]}
33... Qd8 {[%clk 0:00:14.9]} 34. Bxg6 {[%clk 0:00:14.3]} 34... Qxf6 {[%clk
0:00:15.2]} 35. exf6 {[%clk 0:00:15.1]} 35... fxg6 {[%clk 0:00:15.3]} 36. Rxe6
{[%clk 0:00:15.4]} 36... Kf7 {[%clk 0:00:14.5]} 37. Rd6 {[%clk 0:00:08.6]} 37...
Rc7 {[%clk 0:00:14.4]} 38. Nf3 {[%clk 0:00:06.4]} 38... Re8 {[%clk 0:00:14.9]}
39. Nd4 {[%clk 0:00:07.2]} 39... Ra8 {[%clk 0:00:12.8]} 40. Rxa8 {[%clk
0:00:02.2]} 40... Bxa8 {[%clk 0:00:13.7]} 41. Ne6 {[%clk 0:00:02.6]} 41... Ra7
{[%clk 0:00:13.2]} 42. Nd8+ {[%clk 0:00:02.2]} 42... Kf8 {[%clk 0:00:11.8]} 43.
Nxc6 {[%clk 0:00:02.4]} 43... Bxc6 {[%clk 0:00:11.5]} 44. Rxc6 {[%clk
0:00:03.3]} 44... Kf7 {[%clk 0:00:11.5]} 45. Rb6 {[%clk 0:00:03.5]} 45... Ra1+
{[%clk 0:00:09.3]} 46. Kg2 {[%clk 0:00:03.7]} 46... Rc1 {[%clk 0:00:10.2]} 47.
b4 {[%clk 0:00:03.6]} 47... Rc4 {[%clk 0:00:08.6]} 48. Rxb5 {[%clk 0:00:04]}
48... Kxf6 {[%clk 0:00:09.3]} 49. Rb6+ {[%clk 0:00:04.4]} 49... Kf5 {[%clk
0:00:08]} 50. c6 {[%clk 0:00:05]} 50... g5 {[%clk 0:00:07.9]} 51. b5 {[%clk
0:00:05.6]} 51... h4 {[%clk 0:00:08.4]} 52. gxh4 {[%clk 0:00:05.5]} 52... Ke6
{[%clk 0:00:07]} 53. hxg5 {[%clk 0:00:05.1]} 53... hxg5 {[%clk 0:00:07.9]} 54.
Rb7 {[%clk 0:00:05]} 54... Kd6 {[%clk 0:00:08.1]} 55. Kg3 {[%clk 0:00:05]} 55...
Rb4 {[%clk 0:00:05.9]} 56. c7 {[%clk 0:00:04.5]} 56... Kd7 {[%clk 0:00:06.1]}
57. b6 {[%clk 0:00:04.9]} 1-0

[Event "Early-Titled-Tuesday-Blitz-March-05-2024"]
[Site "Chess.com"]
[Date "2024.03.05"]
[Round "10"]
[White "Chernov_Mikhail"]
[Black "xakevicius91"]
[Result "1-0"]
[WhiteElo "2427"]
[BlackElo "2570"]
[TimeControl "180+1"]
[EndTime "9:58:34 PST"]
[Termination "Chernov_Mikhail won by checkmate"]

1. e4 {[%clk 0:02:59]} 1... c5 {[%clk 0:02:57.3]} 2. c3 {[%clk 0:02:59]} 2...
Nf6 {[%clk 0:02:55.9]} 3. e5 {[%clk 0:02:58.4]} 3... Nd5 {[%clk 0:02:56.5]} 4.
d4 {[%clk 0:02:58.9]} 4... cxd4 {[%clk 0:02:57.4]} 5. cxd4 {[%clk 0:02:58.9]}
5... d6 {[%clk 0:02:57.9]} 6. Nf3 {[%clk 0:02:59.5]} 6... e6 {[%clk 0:02:58]} 7.
Bc4 {[%clk 0:02:59.5]} 7... Be7 {[%clk 0:02:58.5]} 8. O-O {[%clk 0:02:59.6]}
8... O-O {[%clk 0:02:58.8]} 9. Qe2 {[%clk 0:02:59.7]} 9... b6 {[%clk 0:02:58.6]}
10. Nc3 {[%clk 0:02:58.7]} 10... Nxc3 {[%clk 0:02:54]} 11. bxc3 {[%clk
0:02:59.6]} 11... Bb7 {[%clk 0:02:53.9]} 12. Bf4 {[%clk 0:02:56.8]} 12... Nc6
{[%clk 0:02:53.6]} 13. Bd3 {[%clk 0:02:39]} 13... Rc8 {[%clk 0:02:41]} 14. exd6
{[%clk 0:02:34.4]} 14... Bxd6 {[%clk 0:02:39.8]} 15. Bxh7+ {[%clk 0:02:29.6]}
15... Kxh7 {[%clk 0:02:37.8]} 16. Ng5+ {[%clk 0:02:29.9]} 16... Kg6 {[%clk
0:02:30.1]} 17. Qe4+ {[%clk 0:02:08.4]} 17... f5 {[%clk 0:02:26.9]} 18. Qxe6+
{[%clk 0:02:01.6]} 18... Rf6 {[%clk 0:02:23.8]} 19. Qe3 {[%clk 0:02:01.3]} 19...
Bxf4 {[%clk 0:02:16]} 20. Qxf4 {[%clk 0:02:02.2]} 20... Qd6 {[%clk 0:02:06.5]}
21. Qh4 {[%clk 0:01:59.5]} 21... Rff8 {[%clk 0:01:43.7]} 22. Qh7+ {[%clk
0:01:39.5]} 22... Kxg5 {[%clk 0:01:28.5]} 23. Qxg7+ {[%clk 0:01:39.1]} 23... Qg6
{[%clk 0:01:22.7]} 24. f4+ {[%clk 0:01:29.2]} 24... Kh5 {[%clk 0:01:19.3]} 25.
Qxb7 {[%clk 0:01:29.7]} 25... Rg8 {[%clk 0:01:15.6]} 26. Rf2 {[%clk 0:01:28]}
26... Rce8 {[%clk 0:01:08.5]} 27. Rd1 {[%clk 0:01:17.9]} 27... Re7 {[%clk
0:01:00.5]} 28. Qa6 {[%clk 0:01:15.7]} 28... Kh6 {[%clk 0:00:58.6]} 29. d5
{[%clk 0:01:13.6]} 29... Nd8 {[%clk 0:00:49.5]} 30. d6 {[%clk 0:01:01.7]} 30...
Re6 {[%clk 0:00:48.7]} 31. d7 {[%clk 0:00:57.9]} 31... Rd6 {[%clk 0:00:45.8]}
32. Re1 {[%clk 0:00:15.4]} 32... Rxd7 {[%clk 0:00:43.8]} 33. Qf1 {[%clk
0:00:14.6]} 33... Kh7 {[%clk 0:00:31.3]} 34. Rf3 {[%clk 0:00:14.4]} 34... Rgg7
{[%clk 0:00:26.6]} 35. Rh3+ {[%clk 0:00:13.6]} 35... Kg8 {[%clk 0:00:26.9]} 36.
Rg3 {[%clk 0:00:14.1]} 36... Qf7 {[%clk 0:00:24.4]} 37. Rge3 {[%clk 0:00:14.7]}
37... Qd5 {[%clk 0:00:17.4]} 38. R1e2 {[%clk 0:00:12.9]} 38... Qc5 {[%clk
0:00:15.7]} 39. Kh1 {[%clk 0:00:12.2]} 39... Rde7 {[%clk 0:00:16.1]} 40. Rxe7
{[%clk 0:00:09.2]} 40... Rxe7 {[%clk 0:00:17]} 41. Rd2 {[%clk 0:00:09.4]} 41...
Nf7 {[%clk 0:00:15.7]} 42. h3 {[%clk 0:00:09.6]} 42... Qe3 {[%clk 0:00:15.6]}
43. Rd1 {[%clk 0:00:08.3]} 43... Qxc3 {[%clk 0:00:15.4]} 44. Qf2 {[%clk
0:00:07.5]} 44... Qb4 {[%clk 0:00:12.2]} 45. Qh4 {[%clk 0:00:07]} 45... Qa3
{[%clk 0:00:05.1]} 46. Kh2 {[%clk 0:00:06.1]} 46... Qb4 {[%clk 0:00:03.8]} 47.
Rd5 {[%clk 0:00:03.9]} 47... Re6 {[%clk 0:00:03.8]} 48. Rxf5 {[%clk 0:00:03.9]}
48... Qe4 {[%clk 0:00:03.6]} 49. Qg4+ {[%clk 0:00:03.7]} 49... Kf8 {[%clk
0:00:03.7]} 50. Qh5 {[%clk 0:00:03.1]} 50... Re7 {[%clk 0:00:02.1]} 51. Qh8#
{[%clk 0:00:03.3]} 1-0